bitfinex/quotes_SOLUSD_20251125
["timestamp","ask_amount","ask_price","bid_price","bid_amount"]
[1764094147993,0.72,137.27,137.23,73.43969855]
[1764094148192,0.72,137.29,137.25,4.3526909]
[1764094148393,0.72,137.29,137.25,5.0526909]
[1764094148597,0.72,137.29,137.26,0.7]
[1764094148816,4.3526909,137.3,137.25,18.21369249]
[1764094149120,5.0726909,137.29,137.25,18.21369249]
[1764094149318,0.72,137.29,137.25,18.91369249]
[1764094149829,0.72,137.32,137.26,3.94]
[1764094149993,5.0726909,137.32,137.27,4.3526909]
[1764094150199,0.72,137.32,137.28,4.3526909]
[1764094150429,0.72,137.32,137.28,5.0526909]
[1764094150932,5.0726909,137.34,137.3,25.49162417]
[1764094151319,0.72,137.36,137.31,5.0526909]
[1764094151620,0.72,137.35,137.31,5.0526909]
[1764094152198,5.2726909,137.37,137.32,0.7]
[1764094152399,5.2726909,137.37,137.32,5.0526909]
[1764094152627,0.72,137.36,137.32,0.7]
[1764094152908,0.72,137.36,137.32,5.0526909]
[1764094153138,0.2,137.37,137.33,29.83874637]
[1764094153306,0.72,137.36,137.33,29.83874637]
[1764094154609,0.72,137.36,137.33,25.48605547]
[1764094154829,0.72,137.36,137.32,7.28209132]
[1764094155007,5.0726909,137.36,137.32,7.28209132]
[1764094155328,4.3526909,137.35,137.32,7.28209132]
[1764094155538,5.0726909,137.35,137.32,7.28209132]
[1764094155834,0.72,137.34,137.32,7.28209132]
[1764094156201,0.72,137.35,137.32,25.48774235]
[1764094156704,0.72,137.35,137.32,7.28209132]
[1764094157136,0.2,137.37,137.32,25.48774235]
[1764094157440,0.72,137.35,137.32,30.54043325]
[1764094157812,0.2,137.37,137.33,0.7]
[1764094158047,0.2,137.37,137.34,4.3526909]
[1764094158531,0.92,137.37,137.34,4.3526909]
[1764094158705,0.72,137.36,137.34,4.3526909]
[1764094159030,0.92,137.45,137.35,8.2926909]
[1764094159231,0.2,137.45,137.44,16.308864]
[1764094159438,0.2,137.48,137.44,23.9215549]
[1764094159732,0.2,137.48,137.45,0.7]
[1764094160401,0.2,137.48,137.46,4.3526909]
[1764094160597,0.2,137.48,137.46,11.51353933]
[1764094161210,0.2,137.48,137.45,7.27537286]
[1764094161407,0.2,137.48,137.46,11.51353933]
[1764094162622,0.2,137.48,137.47,11.51353933]
[1764094163107,0.2,137.48,137.47,15.47353933]
[1764094163318,0.2,137.48,137.47,22.74785372]
[1764094166204,0.2,137.48,137.47,7.27431439]
[1764094166410,0.91,137.48,137.46,10.51483254]
[1764094166630,11.51353933,137.47,137.41,7.27741367]
[1764094166850,11.51353933,137.46,137.41,7.27741367]
[1764094167143,11.51353933,137.44,137.4,11.18798936]
[1764094167439,28.53240333,137.45,137.4,22.03152869]
[1764094167642,11.51353933,137.44,137.4,7.27798936]
[1764094167848,12.22353933,137.44,137.4,7.27798936]
[1764094169018,0.71,137.44,137.4,18.79152869]
[1764094169224,12.22353933,137.44,137.4,7.27798936]
[1764094169633,11.51353933,137.42,137.39,7.27834945]
[1764094170009,11.51353933,137.42,137.38,10.51900293]
[1764094170205,0.71,137.41,137.38,10.51900293]
[1764094170516,12.22353933,137.42,137.38,22.03254226]
[1764094170925,7.27607684,137.44,137.37,10.51941386]
[1764094170926,12.22353933,137.41,137.37,10.51941386]
[1764094171326,0.71,137.4,137.37,7.27941386]
[1764094171839,0.71,137.4,137.35,18.20143278]
[1764094172034,19.50184288,137.4,137.35,7.28066982]
[1764094172211,19.50184288,137.4,137.35,10.52066982]
[1764094172412,12.22353933,137.39,137.35,10.52066982]
[1764094172613,12.22353933,137.4,137.35,11.19066982]
[1764094173140,12.22353933,137.4,137.35,22.70420915]
[1764094173343,12.22353933,137.4,137.35,40.9058837]
[1764094174131,0.71,137.39,137.35,40.2358837]
[1764094174336,0.71,137.39,137.35,40.9058837]
[1764094174813,12.22353933,137.39,137.35,28.72234437]
[1764094175830,0.71,137.39,137.35,40.2358837]
[1764094176322,11.51353933,137.4,137.36,11.51353933]
[1764094176515,0.71,137.39,137.35,29.39234437]
[1764094177015,0.71,137.39,137.35,28.72234437]
[1764094177335,12.22353933,137.39,137.35,22.03420915]
[1764094177536,11.51353933,137.38,137.35,7.28066982]
[1764094177766,12.22353933,137.38,137.35,7.28066982]
[1764094178122,0.71,137.38,137.35,7.28066982]
[1764094179139,0.71,137.41,137.36,0.67]
[1764094179329,12.22353933,137.41,137.36,11.51353933]
[1764094179818,0.71,137.4,137.36,11.51353933]
[1764094180140,0.71,137.4,137.37,7.27960981]
[1764094180352,19.50163961,137.4,137.36,7.27992193]
[1764094180523,11.51353933,137.39,137.36,7.27992193]
[1764094180724,12.22353933,137.39,137.35,7.28054636]
[1764094180940,3.95,137.4,137.35,11.19054636]
[1764094181121,35.09957424,137.42,137.36,0.67]
[1764094181328,0.71,137.4,137.37,11.51353933]
[1764094181517,0.71,137.4,137.36,15.42353933]
[1764094181720,0.71,137.4,137.37,11.51353933]
[1764094181934,0.71,137.4,137.37,7.27911512]
[1764094183548,0.71,137.41,137.37,19.46265445]
[1764094183732,0.71,137.41,137.38,11.51353933]
[1764094183934,0.71,137.41,137.38,69.07886052]
[1764094184452,0.71,137.41,137.37,18.79291339]
[1764094184627,0.71,137.41,137.37,36.99193792]
[1764094184822,0.71,137.41,137.38,11.51353933]
[1764094185936,0.71,137.43,137.41,7.27749072]
[1764094186564,0.71,137.43,137.4,7.27778313]
[1764094188160,11.51353933,137.42,137.39,7.27842324]
[1764094188658,7.33205892,137.41,137.38,61.8]
[1764094188824,0.71,137.41,137.38,7.27873123]
[1764094189143,22.93092292,137.45,137.4,6.62205892]
[1764094189345,20.258864,137.45,137.41,6.62205892]
[1764094189518,19.548864,137.45,137.41,6.62205892]
[1764094189720,0.71,137.44,137.41,6.62205892]
[1764094189952,0.71,137.44,137.4,6.62205892]
[1764094190147,0.71,137.44,137.41,7.27749072]
[1764094191057,0.71,137.44,137.41,13.89954964]
[1764094191424,0.71,137.44,137.41,75.69954964]
[1764094191622,0.71,137.44,137.41,93.89327644]
[1764094192148,0.71,137.44,137.41,69.07749072]
[1764094193842,0.71,137.44,137.41,68.31349072]
[1764094194750,0.71,137.44,137.41,6.51349072]
[1764094194930,0.71,137.44,137.4,35.33463566]
[1764094195244,7.33205892,137.44,137.4,10.51802037]
[1764094195451,14.60796699,137.44,137.4,10.51802037]
[1764094195651,0.68,137.43,137.4,17.14007929]
[1764094195956,0.68,137.43,137.4,13.90007929]
[1764094196548,23.61092292,137.45,137.41,6.62205892]
[1764094196755,0.68,137.44,137.41,6.62205892]
[1764094197150,0.68,137.44,137.42,7.27696114]
[1764094198154,0.68,137.44,137.41,7.27724254]
[1764094198845,3.92,137.47,137.42,7.33205892]
[1764094199034,3.92,137.47,137.43,6.62205892]
[1764094199361,0.67,137.46,137.44,7.27590221]
[1764094200355,3.24,137.47,137.44,7.27590221]
[1764094200559,0.67,137.46,137.44,7.27590221]
[1764094200856,0.67,137.46,137.43,69.07641534]
[1764094200857,6.62205892,137.45,137.43,69.07641534]
[1764094201055,7.29205892,137.46,137.43,69.07641534]
[1764094201361,0.67,137.45,137.43,69.07641534]
[1764094201525,19.548864,137.47,137.43,76.41847426]
[1764094201733,0.2,137.48,137.46,6.62205892]
[1764094201936,0.87,137.48,137.45,9.86205892]
[1764094202160,0.2,137.48,137.45,9.86205892]
[1764094202458,0.2,137.48,137.45,10.58205892]
[1764094202776,0.2,137.48,137.45,6.73788559]
[1764094203366,0.2,137.48,137.46,7.27484359]
[1764094204157,0.87,137.48,137.45,7.27529576]
[1764094204730,0.67,137.47,137.45,7.27529576]
[1764094204930,0.67,137.47,137.43,7.27629216]
[1764094204931,3.44788559,137.47,137.43,7.27629216]
[1764094205130,2.77788559,137.45,137.41,16.308864]
[1764094205367,2.77788559,137.45,137.41,22.32674959]
[1764094205565,0.67,137.45,137.42,7.27677383]
[1764094206760,3.44788559,137.45,137.42,7.27677383]
[1764094207146,2.77788559,137.45,137.42,7.27677383]
[1764094207342,0.87,137.48,137.43,0.72]
[1764094207653,0.2,137.48,137.44,25.46565773]
[1764094207862,0.2,137.48,137.45,0.72]
[1764094208260,0.2,137.48,137.46,3.24]
[1764094208470,0.87,137.48,137.45,6.01788559]
[1764094208760,0.87,137.48,137.45,3.24]
[1764094209168,0.87,137.48,137.45,3.96]
[1764094209342,0.2,137.48,137.45,3.96]
[1764094209842,0.87,137.48,137.45,10.51537286]
[1764094210037,3.64788559,137.48,137.45,10.51537286]
[1764094210238,0.87,137.48,137.45,10.51537286]
[1764094211256,0.87,137.48,137.45,7.27537286]
[1764094212548,0.87,137.48,137.45,61.8]
[1764094212970,0.2,137.48,137.46,3.49788559]
[1764094213480,0.2,137.48,137.47,3.49788559]
[1764094213774,0.2,137.48,137.47,6.73788559]
[1764094214251,0.2,137.48,137.47,13.29219998]
[1764094214451,0.2,137.48,137.47,14.01219998]
[1764094214652,0.2,137.48,137.47,10.51431439]
[1764094216167,0.87,137.48,137.47,7.27431439]
[1764094216666,0.87,137.48,137.46,7.27470754]
[1764094217258,0.2,137.48,137.46,7.99470754]
[1764094217458,0.2,137.48,137.46,7.27470754]
[1764094217673,0.87,137.48,137.46,7.27470754]
[1764094218063,0.67,137.47,137.46,7.27470754]
[1764094218459,0.2,137.48,137.46,75.81259313]
[1764094218649,0.2,137.48,137.47,3.49788559]
[1764094219848,0.2,137.48,137.47,65.29788559]
[1764094220054,0.2,137.48,137.47,73.29963141]
[1764094220460,0.2,137.48,137.47,76.53963141]
[1764094220661,0.2,137.48,137.47,75.81219998]
[1764094221073,0.2,137.48,137.47,69.79431439]
[1764094221262,0.2,137.48,137.47,75.09219998]
[1764094221470,0.2,137.48,137.47,73.03431439]
[1764094221679,0.2,137.48,137.47,75.81219998]
[1764094222356,0.2,137.48,137.47,72.31431439]
[1764094223062,0.2,137.48,137.47,75.09219998]
[1764094224989,0.9,137.48,137.47,72.31431439]
[1764094225191,0.9,137.48,137.47,69.07431439]
[1764094225557,0.2,137.48,137.47,69.07431439]
[1764094226663,0.9,137.48,137.47,69.07431439]
[1764094227172,0.2,137.48,137.47,69.07431439]
[1764094230166,0.2,137.48,137.47,71.85219998]
[1764094230592,0.2,137.48,137.47,72.54219998]
[1764094231599,0.2,137.49,137.47,72.54219998]
[1764094231768,0.2,137.49,137.48,6.70788559]
[1764094231968,1e-08,137.49,137.48,84.81674959]
[1764094232189,0.2,137.5,137.48,96.4045801]
[1764094232393,0.2,137.53,137.52,2.77788559]
[1764094232769,0.2,137.53,137.52,6.70788559]
[1764094233070,0.2,137.53,137.52,6.01788559]
[1764094233702,0.2,137.53,137.5,18.87054329]
[1764094233873,3.67788559,137.53,137.5,10.51249229]
[1764094234072,3.67788559,137.53,137.5,7.27249229]
[1764094234312,0.7,137.52,137.5,7.27249229]
[1764094235309,6.81099909,137.53,137.5,7.27249229]
[1764094235598,7.51099909,137.53,137.5,7.27249229]
[1764094237084,0.9,137.53,137.5,7.27249229]
[1764094237279,0.9,137.53,137.5,13.88349138]
[1764094237597,0.9,137.53,137.5,7.27249229]
[1764094238289,0.7,137.52,137.5,7.27249229]
[1764094238896,0.7,137.52,137.49,21.42253506]
[1764094238897,7.31099909,137.52,137.49,10.51311509]
[1764094239071,7.31099909,137.52,137.49,72.31311509]
[1764094239276,0.7,137.51,137.49,69.07311509]
[1764094239703,0.7,137.51,137.49,7.27311509]
[1764094239889,0.7,137.51,137.46,3.24]
[1764094239890,6.61099909,137.5,137.46,3.24]
[1764094240199,6.61099909,137.5,137.46,10.51484359]
[1764094240515,6.61099909,137.5,137.42,16.308864]
[1764094240516,6.61099909,137.47,137.4,0.69]
[1764094240673,6.61099909,137.45,137.41,3.24]
[1764094240873,0.7,137.46,137.42,6.61099909]
[1764094241072,6.61099909,137.47,137.43,7.27643163]
[1764094241284,0.7,137.48,137.43,7.27643163]
[1764094241285,7.27393633,137.48,137.43,7.27643163]
[1764094241485,0.7,137.48,137.44,7.30099909]
[1764094241695,0.7,137.48,137.45,6.61099909]
[1764094242090,7.31099909,137.48,137.44,9.85099909]
[1764094242398,6.61099909,137.47,137.43,13.88743072]
[1764094242575,6.61099909,137.46,137.42,7.27672869]
[1764094242897,6.61099909,137.45,137.42,7.27672869]
[1764094243090,7.31099909,137.45,137.42,7.27672869]
[1764094243291,7.27466755,137.47,137.42,7.27672869]
[1764094243495,7.31099909,137.46,137.42,13.88772778]
[1764094243803,7.31099909,137.46,137.42,7.27672869]
[1764094244005,0.7,137.45,137.42,7.27672869]
[1764094244299,6.61099909,137.43,137.37,0.69]
[1764094244487,6.61099909,137.43,137.38,9.85099909]
[1764094244802,0.7,137.42,137.38,9.85099909]
[1764094245105,7.31099909,137.42,137.38,9.85099909]
[1764094245283,6.61099909,137.41,137.37,6.61099909]
[1764094245602,7.31099909,137.41,137.37,10.51938821]
[1764094245792,0.7,137.4,137.37,10.51938821]
[1764094246400,7.31099909,137.4,137.36,7.27996439]
[1764094246590,7.31099909,137.4,137.36,14.58096348]
[1764094246591,0.7,137.4,137.36,14.58096348]
[1764094246992,0.7,137.4,137.36,13.89096348]
[1764094247203,6.61099909,137.37,137.33,6.61099909]
[1764094247503,6.61099909,137.37,137.32,0.69]
[1764094247504,6.61099909,137.37,137.34,7.28101419]
[1764094247696,7.31099909,137.4,137.35,6.61099909]
[1764094248082,0.7,137.39,137.35,6.61099909]
[1764094248382,6.61099909,137.38,137.34,13.89201328]
[1764094248580,6.61099909,137.36,137.32,7.28221732]
[1764094248899,0.7,137.37,137.32,7.28221732]
[1764094249102,7.31099909,137.36,137.32,7.28221732]
[1764094249302,0.7,137.36,137.31,17.13360715]
[1764094249506,6.61099909,137.4,137.35,6.61099909]
[1764094249687,6.61099909,137.44,137.38,6.61099909]
[1764094249688,0.7,137.41,137.38,6.61099909]
[1764094249893,0.7,137.41,137.37,6.61099909]
[1764094250081,0.7,137.41,137.34,3.24]
[1764094250082,0.7,137.41,137.35,0.69]
[1764094250282,0.7,137.41,137.37,6.61099909]
[1764094250478,10.55099909,137.43,137.38,6.61099909]
[1764094250683,12.22655724,137.45,137.4,11.52655724]
[1764094250906,0.7,137.45,137.41,11.52655724]
[1764094251289,7.97542976,137.45,137.41,18.80397652]
[1764094251689,0.7,137.44,137.41,18.80397652]
[1764094253612,0.7,137.44,137.41,11.52655724]
[1764094253786,0.7,137.44,137.4,18.80457761]
[1764094254110,0.7,137.44,137.41,11.52655724]
[1764094254410,0.7,137.44,137.41,18.80363813]
[1764094254612,35.11032127,137.46,137.41,18.80363813]
[1764094254815,0.72,137.45,137.41,19.48363813]
[1764094255521,0.72,137.45,137.42,11.52655724]
[1764094256818,0.72,137.45,137.41,7.95708089]
[1764094257108,7.99553065,137.45,137.41,18.80363813]
[1764094257315,0.72,137.45,137.41,18.80363813]
[1764094257501,0.72,137.45,137.41,7.27708089]
[1764094257899,7.99559289,137.45,137.41,7.27708089]
[1764094258399,7.99598985,137.44,137.4,11.19781028]
[1764094258603,19.52254709,137.44,137.39,7.27834914]
[1764094258796,12.24655724,137.43,137.39,18.80490638]
[1764094258998,11.52655724,137.42,137.39,7.27834914]
[1764094259198,12.20655724,137.42,137.39,61.8]
[1764094259423,0.68,137.41,137.38,7.27887709]
[1764094260296,0.68,137.41,137.38,18.80543433]
[1764094260692,11.52655724,137.4,137.35,7.28066982]
[1764094260925,19.48417678,137.41,137.36,11.52655724]
[1764094261130,11.52655724,137.37,137.3,11.08831848]
[1764094261412,12.20655724,137.4,137.3,11.08831848]
[1764094261413,19.548864,137.36,137.31,11.52655724]
[1764094261591,31.07542124,137.36,137.31,11.52655724]
[1764094261787,31.75542124,137.36,137.31,11.52655724]
[1764094261994,31.75542124,137.36,137.31,12.23655724]
[1764094262602,31.07542124,137.36,137.31,11.52655724]
[1764094262824,31.07542124,137.36,137.27,20.21497325]
[1764094262825,26.82912871,137.36,137.29,7.2836474]
[1764094263025,5.9183495,137.33,137.29,7.2836474]
[1764094263197,5.9183495,137.33,137.28,0.71]
[1764094263399,5.9183495,137.33,137.28,12.23655724]
[1764094263597,5.9183495,137.33,137.29,0.71]
[1764094263795,11.52655724,137.3,137.27,0.1]
[1764094264116,11.52655724,137.31,137.27,0.1]
[1764094264319,11.52655724,137.3,137.27,0.1]
[1764094264624,18.80967155,137.31,137.27,0.1]
[1764094265025,18.80895772,137.32,137.27,12.33655724]
[1764094265198,18.80895772,137.32,137.27,0.81]
[1764094265398,11.52655724,137.31,137.27,0.81]
[1764094265901,11.52655724,137.31,137.27,12.33655724]
[1764094266103,18.80941061,137.31,137.27,0.81]
[1764094266301,18.80884831,137.32,137.28,0.71]
[1764094266498,11.52655724,137.31,137.28,61.8]
[1764094266719,11.52655724,137.31,137.28,62.51]
[1764094266918,11.52655724,137.31,137.28,61.8]
[1764094267103,7.28229107,137.32,137.28,62.51]
[1764094267303,18.80884831,137.32,137.28,62.51]
[1764094267602,16.308864,137.33,137.29,12.23655724]
[1764094267911,16.308864,137.32,137.29,12.23655724]
[1764094268112,16.308864,137.32,137.3,0.71]
[1764094268931,16.308864,137.32,137.3,12.23655724]
[1764094269226,15.588864,137.35,137.3,12.23655724]
[1764094269448,0.68,137.51,137.49,1.99999999]
[1764094269615,0.68,137.51,137.49,13.52655723]
[1764094270094,0.68,137.51,137.48,1.99999999]
[1764094270925,11.52655724,137.5,137.45,1.99999999]
[1764094271114,11.52655724,137.49,137.44,1.99999999]
[1764094271429,3.96,137.5,137.46,1.99999999]
[1764094271618,3.96,137.5,137.46,13.52655723]
[1764094271820,0.78,137.49,137.47,11.52655724]
[1764094272533,0.78,137.49,137.46,20.80091441]
[1764094273430,0.78,137.49,137.47,13.52655723]
[1764094274408,0.78,137.49,137.47,20.80045366]
[1764094274814,0.1,137.49,137.47,20.80045366]
[1764094276741,0.1,137.49,137.48,9.27378526]
[1764094278923,0.1,137.49,137.47,1.99999999]
[1764094279131,0.78,137.49,137.47,1.99999999]
[1764094279309,0.1,137.49,137.48,13.52655723]
[1764094280126,0.1,137.49,137.48,20.8003425]
[1764094280531,16.308864,137.54,137.48,20.8003425]
[1764094280532,12.88655724,137.6,137.56,1.99999999]
[1764094280715,0.68,137.59,137.57,13.52655723]
[1764094281227,28.03542124,137.62,137.57,13.52655723]
[1764094281228,0.68,137.61,137.57,13.52655723]
[1764094281415,0.68,137.61,137.58,11.52655724]
[1764094281612,16.308864,137.6,137.58,11.52655724]
[1764094282015,16.988864,137.6,137.58,11.52655724]
[1764094282346,0.68,137.6,137.58,20.7948317]
[1764094282536,0.68,137.6,137.59,11.52655724]
[1764094282732,0.68,137.6,137.57,13.52655723]
[1764094283040,0.68,137.6,137.58,13.52655723]
[1764094283916,0.68,137.6,137.57,20.79512331]
[1764094285112,0.68,137.6,137.57,1.99999999]
[1764094285341,7.94752483,137.6,137.57,1.99999999]
[1764094285545,7.9474996,137.6,137.57,1.99999999]
[1764094285710,0.67,137.59,137.57,1.99999999]
[1764094285914,0.67,137.59,137.57,13.52655723]
[1764094286137,0.67,137.59,137.57,11.52655724]
[1764094286354,0.67,137.59,137.57,1.99999999]
[1764094286558,7.93805494,137.59,137.55,13.52655723]
[1764094286718,7.93805494,137.59,137.57,1.99999999]
[1764094286918,0.67,137.58,137.56,1.99999999]
[1764094287347,12.19655724,137.58,137.55,1.99999999]
[1764094287549,12.19655724,137.58,137.54,1.99999999]
[1764094287755,3.95,137.57,137.54,13.52655723]
[1764094288344,0.67,137.56,137.54,13.52655723]
[1764094288514,16.978864,137.56,137.53,1.99999999]
[1764094288717,3.28,137.57,137.55,1.99999999]
[1764094288917,3.95,137.57,137.55,1.99999999]
[1764094290458,3.28,137.58,137.56,11.52655724]
[1764094290626,3.28,137.58,137.57,11.52655724]
[1764094290832,7.46657127,137.62,137.58,1.99999999]
[1764094291143,4.15,137.62,137.6,1.99999999]
[1764094291849,4.15,137.62,137.61,1.99999999]
[1764094292045,4.15,137.62,137.56,16.328864]
[1764094292046,0.67,137.61,137.6,1.99999999]
[1764094292547,0.67,137.61,137.59,1.99999999]
[1764094293734,7.9369951,137.61,137.58,1.99999999]
[1764094293943,11.52655724,137.6,137.57,1.99999999]
[1764094294131,12.19655724,137.6,137.57,1.99999999]
[1764094294327,0.67,137.59,137.57,1.99999999]
[1764094294951,21.64657813,137.62,137.58,1.99999999]
[1764094295146,12.19655724,137.61,137.57,13.52655723]
[1764094295652,0.67,137.6,137.57,13.52655723]
[1764094295842,3.28,137.59,137.57,13.52655723]
[1764094296349,3.95,137.59,137.57,13.52655723]
[1764094296551,0.67,137.58,137.55,1.99999999]
[1764094296846,0.67,137.58,137.55,13.52655723]
[1764094297046,0.67,137.58,137.56,1.99999999]
[1764094297633,0.67,137.6,137.57,11.52655724]
[1764094297855,3.28,137.6,137.58,11.52655724]
[1764094298021,0.87,137.62,137.59,11.52655724]
[1764094298222,0.2,137.62,137.6,11.52655724]
[1764094298419,0.2,137.62,137.61,13.52655723]
[1764094300350,0.2,137.62,137.61,20.79347097]
[1764094303330,22.94314105,137.62,137.58,1.99999999]
[1764094303531,12.19655724,137.61,137.58,1.99999999]
[1764094303731,0.67,137.61,137.58,9.26842147]
[1764094303931,0.67,137.6,137.58,9.26842147]
[1764094304151,0.67,137.6,137.58,1.99999999]
[1764094304355,0.67,137.6,137.58,9.26845716]
[1764094304651,0.67,137.6,137.58,1.99999999]
[1764094305155,10.74658381,137.62,137.59,1.99999999]
[1764094305156,4.15,137.62,137.59,1.99999999]
[1764094305342,3.28,137.61,137.59,1.99999999]
[1764094306052,0.2,137.62,137.6,13.52655723]
[1764094306353,12.19655724,137.61,137.57,1.99999999]
[1764094306530,3.28,137.6,137.58,1.99999999]
[1764094306732,3.95,137.6,137.58,1.99999999]
[1764094306935,12.19655724,137.59,137.57,1.99999999]
[1764094307129,0.67,137.59,137.57,1.99999999]
[1764094308655,0.67,137.59,137.57,9.26865455]
[1764094308858,19.588864,137.6,137.57,9.26865455]
[1764094309045,19.588864,137.6,137.57,20.79521179]
[1764094309251,16.308864,137.6,137.57,9.26865455]
[1764094309740,12.19655724,137.59,137.56,1.99999999]
[1764094309940,12.19655724,137.59,137.55,1.99999999]
[1764094310134,0.67,137.58,137.55,9.26995334]
[1764094310370,3.95,137.58,137.55,9.26995334]
[1764094310949,15.47655724,137.58,137.55,9.26995334]
[1764094311150,15.47655724,137.58,137.56,1.99999999]
[1764094311348,15.47655724,137.58,137.55,9.26995334]
[1764094311664,3.28,137.61,137.57,13.52655723]
[1764094311862,15.47655724,137.61,137.57,1.99999999]
[1764094312063,0.67,137.6,137.57,1.99999999]
[1764094312268,12.19655724,137.6,137.57,1.99999999]
[1764094312444,0.67,137.6,137.58,1.99999999]
[1764094312953,0.67,137.6,137.57,1.99999999]
[1764094313265,6.60358128,137.58,137.56,1.99999999]
[1764094313570,9.86358128,137.57,137.53,1.99999999]
[1764094313751,6.60358128,137.55,137.53,1.99999999]
[1764094313941,3.26,137.55,137.53,1.99999999]
[1764094314136,3.92,137.55,137.53,1.99999999]
[1764094314548,3.26,137.55,137.53,9.27094447]
[1764094315347,7.26358128,137.59,137.54,1.99999999]
[1764094315570,7.26358128,137.59,137.55,1.99999999]
[1764094315867,16.968864,137.6,137.56,1.99999999]
[1764094316063,0.66,137.59,137.56,1.99999999]
[1764094316466,16.308864,137.6,137.57,7.26902667]
[1764094316772,0.66,137.61,137.57,13.87260795]
[1764094316958,0.66,137.61,137.59,1.99999999]
[1764094317362,42.40311237,137.61,137.56,1.99999999]
[1764094317558,6.60358128,137.59,137.55,9.26974141]
[1764094317755,6.60358128,137.58,137.55,1.99999999]
[1764094317956,7.26358128,137.58,137.55,1.99999999]
[1764094318270,16.968864,137.57,137.52,9.2715054]
[1764094318479,3.26,137.56,137.54,7.27061218]
[1764094320082,0.69,137.55,137.53,9.27094796]
[1764094320248,0.69,137.55,137.53,1.99999999]
[1764094320448,3.26,137.56,137.53,9.27097552]
[1764094320683,7.26743495,137.61,137.54,0.02]
[1764094320845,7.46683862,137.62,137.55,8.60358127]
[1764094321172,7.46683862,137.62,137.58,1.99999999]
[1764094321173,7.49358128,137.62,137.58,1.99999999]
[1764094321376,0.2,137.62,137.59,1.99999999]
[1764094321672,0.2,137.62,137.6,1.99999999]
[1764094321986,7.49358128,137.62,137.58,1.99999999]
[1764094322578,0.69,137.61,137.58,1.99999999]
[1764094322754,0.89,137.62,137.59,7.26797005]
[1764094322960,6.60358128,137.6,137.56,1.99999999]
[1764094323162,6.60358128,137.6,137.58,1.99999999]
[1764094323474,7.29358128,137.6,137.58,1.99999999]
[1764094323656,0.69,137.59,137.56,9.26952893]
[1764094324055,7.29358128,137.59,137.56,9.26952893]
[1764094324268,6.60358128,137.58,137.55,1.99999999]
[1764094324478,6.60358128,137.57,137.54,9.27033305]
[1764094324776,7.29358128,137.57,137.55,1.99999999]
[1764094324956,13.87262902,137.57,137.54,9.27033305]
[1764094325162,0.69,137.56,137.54,9.27033305]
[1764094325359,0.69,137.56,137.55,1.99999999]
[1764094325563,0.69,137.58,137.55,1.99999999]
[1764094325770,0.69,137.57,137.54,1.99999999]
[1764094326073,9.86358128,137.56,137.52,9.2715074]
[1764094326274,9.86358128,137.56,137.5,19.568864]
[1764094326275,6.60358128,137.54,137.5,5.25999999]
[1764094326480,6.60358128,137.54,137.5,3.26]
[1764094326777,3.26,137.57,137.54,7.27061218]
[1764094326967,16.998864,137.58,137.54,9.27061217]
[1764094327277,0.69,137.58,137.56,1.99999999]
[1764094327472,16.998864,137.61,137.56,1.99999999]
[1764094327654,7.29358128,137.6,137.56,63.79999999]
[1764094328080,10.55358128,137.6,137.56,63.79999999]
[1764094328254,0.69,137.6,137.57,1.99999999]
[1764094328449,6.60358128,137.61,137.57,1.99999999]
[1764094328652,3.46,137.62,137.57,1.99999999]
[1764094328653,7.29358128,137.6,137.57,1.99999999]
[1764094329176,6.60358128,137.58,137.56,63.79999999]
[1764094329379,7.29358128,137.57,137.55,9.2699386]
[1764094329582,6.60358128,137.56,137.55,1.99999999]
[1764094329766,7.29358128,137.56,137.52,9.27157677]
[1764094330077,6.60358128,137.54,137.51,71.07194767]
[1764094330275,6.60358128,137.54,137.51,61.8]
[1764094330581,7.29358128,137.54,137.51,69.071995]
[1764094330765,9.86358128,137.54,137.51,61.8]
[1764094330965,0.69,137.53,137.51,61.8]
[1764094331164,0.69,137.53,137.5,9.27254634]
[1764094331363,7.29358128,137.53,137.5,9.27254634]
[1764094331558,6.60358128,137.54,137.51,1.99999999]